[Event "Titled Tuesday Blitz January 03 Late 2023"]
[White "Kuznetsov, Felix"]
[Black "Chigaev, Maksim"]
[WhiteFideId "34147990"]
[BlackFideId "4108116"]
[WhiteElo "2254"]
[BlackElo "2628"]
[Result "0-1"]
[Round "11"]
[TimeControl "180+2"]
[Date "2023.01.03"]
[WhiteClock "0:00:06"]
[BlackClock "0:00:09"]

1. e4 {[%clk 0:03:00]}  e6 {[%clk 0:03:00]} 2. d4 {[%clk 0:03:01]}  d5 {[%clk 0:03:01]} 3. Nd2 {[%clk 0:03:01]}  c5 {[%clk 0:03:00]} 4. Ngf3 {[%clk 0:03:01]}  cxd4 {[%clk 0:02:58]} 5. exd5 {[%clk 0:03:02]}  Qxd5 {[%clk 0:02:58]} 6. Bc4 {[%clk 0:03:02]}  Qd7 {[%clk 0:02:58]} 7. O-O {[%clk 0:03:03]}  Nc6 {[%clk 0:02:59]} 8. Nb3 {[%clk 0:03:03]}  Nf6 {[%clk 0:03:00]} 9. Nbxd4 {[%clk 0:03:03]}  Nxd4 {[%clk 0:03:00]} 10. Nxd4 {[%clk 0:03:04]}  a6 {[%clk 0:03:00]} 11. Re1 {[%clk 0:03:04]}  b5 {[%clk 0:03:00]} 12. Bb3 {[%clk 0:03:03]}  Bb7 {[%clk 0:02:57]} 13. Bg5 {[%clk 0:02:56]}  Ne4 {[%clk 0:02:56]} 14. Be3 {[%clk 0:02:52]}  Nc5 {[%clk 0:02:51]} 15. Qh5 {[%clk 0:02:43]}  Nxb3 {[%clk 0:02:45]} 16. axb3 {[%clk 0:02:43]}  Qd5 {[%clk 0:01:54]} 17. Qh3 {[%clk 0:02:43]}  Bb4 {[%clk 0:01:39]} 18. c3 {[%clk 0:02:39]}  Be7 {[%clk 0:01:40]} 19. Rad1 {[%clk 0:02:23]}  O-O {[%clk 0:01:38]} 20. Bf4 {[%clk 0:02:16]}  Rad8 {[%clk 0:01:28]} 21. Re5 {[%clk 0:02:00]}  Qxb3 {[%clk 0:01:27]} 22. Rde1 {[%clk 0:01:32]}  Rxd4 {[%clk 0:01:15]} 23. cxd4 {[%clk 0:01:18]}  Qxh3 {[%clk 0:01:15]} 24. gxh3 {[%clk 0:01:19]}  Bd6 {[%clk 0:01:16]} 25. Rxb5 {[%clk 0:01:20]}  axb5 {[%clk 0:01:14]} 26. Bxd6 {[%clk 0:01:20]}  Rd8 {[%clk 0:01:15]} 27. Bc5 {[%clk 0:01:20]}  h6 {[%clk 0:01:05]} 28. Ra1 {[%clk 0:01:20]}  e5 {[%clk 0:01:01]} 29. dxe5 {[%clk 0:01:16]}  Rd3 {[%clk 0:01:01]} 30. b4 {[%clk 0:01:12]}  Bd5 {[%clk 0:00:57]} 31. h4 {[%clk 0:01:10]}  Kh7 {[%clk 0:00:57]} 32. Be3 {[%clk 0:00:49]}  Rb3 {[%clk 0:00:56]} 33. Bc5 {[%clk 0:00:45]}  Kg6 {[%clk 0:00:50]} 34. Kf1 {[%clk 0:00:39]}  Rh3 {[%clk 0:00:49]} 35. Ke2 {[%clk 0:00:29]}  Rxh4 {[%clk 0:00:45]} 36. Bd6 {[%clk 0:00:29]}  Kf5 {[%clk 0:00:38]} 37. Ra3 {[%clk 0:00:26]}  Bc4+ {[%clk 0:00:33]} 38. Ke1 {[%clk 0:00:22]}  Rxh2 {[%clk 0:00:31]} 39. Rg3 {[%clk 0:00:17]}  g5 {[%clk 0:00:25]} 40. Rf3+ {[%clk 0:00:17]}  Kg4 {[%clk 0:00:18]} 41. Rf6 {[%clk 0:00:17]}  Be6 {[%clk 0:00:17]} 42. Kd2 {[%clk 0:00:14]}  h5 {[%clk 0:00:16]} 43. Ke3 {[%clk 0:00:15]}  Rh1 {[%clk 0:00:09]} 44. Rh6 {[%clk 0:00:12]}  Re1+ {[%clk 0:00:08]} 45. Kd2 {[%clk 0:00:12]}  Re4 {[%clk 0:00:08]} 46. Rf6 {[%clk 0:00:11]}  Rf4 {[%clk 0:00:05]} 47. Rxf4+ {[%clk 0:00:10]}  Kxf4 {[%clk 0:00:05]} 48. Be7 {[%clk 0:00:08]}  h4 {[%clk 0:00:05]} 49. Ke1 {[%clk 0:00:07]}  h3 {[%clk 0:00:02]} 50. Kf1 {[%clk 0:00:07]}  g4 {[%clk 0:00:02]} 51. Kg1 {[%clk 0:00:07]}  Kxe5 {[%clk 0:00:03]} 52. Bc5 {[%clk 0:00:06]}  Kf4 {[%clk 0:00:03]} 53. Kh2 {[%clk 0:00:06]}  f5 {[%clk 0:00:03]} 54. Bd6+ {[%clk 0:00:07]}  Kf3 {[%clk 0:00:04]} 55. Bc5 {[%clk 0:00:07]}  f4 {[%clk 0:00:04]} 56. Bd6 {[%clk 0:00:04]}  Ke4 {[%clk 0:00:04]} 57. Bc7 {[%clk 0:00:04]}  Bc4 {[%clk 0:00:04]} 58. Bb8 {[%clk 0:00:04]}  Bf1 {[%clk 0:00:04]} 59. Bc7 {[%clk 0:00:05]}  Bg2 {[%clk 0:00:05]} 60. Bb8 {[%clk 0:00:05]}  Kf5 {[%clk 0:00:05]} 61. Bc7 {[%clk 0:00:05]}  Bf1 {[%clk 0:00:05]} 62. Bb8 {[%clk 0:00:06]}  Bc4 {[%clk 0:00:05]} 63. Bc7 {[%clk 0:00:06]}  Ke4 {[%clk 0:00:05]} 64. Bb8 {[%clk 0:00:06]}  g3+ {[%clk 0:00:05]} 65. fxg3 {[%clk 0:00:06]}  f3 {[%clk 0:00:06]} 66. Ba7 {[%clk 0:00:06]}  Be6 {[%clk 0:00:06]} 67. Bf2 {[%clk 0:00:06]}  Kd3 {[%clk 0:00:06]} 68. g4 {[%clk 0:00:06]}  Ke2 {[%clk 0:00:04]} 69. Bc5 {[%clk 0:00:02]}  f2 {[%clk 0:00:05]} 70. Bxf2 {[%clk 0:00:02]}  Kxf2 {[%clk 0:00:06]} 71. Kxh3 {[%clk 0:00:03]}  Kf3 {[%clk 0:00:06]} 72. Kh4 {[%clk 0:00:04]}  Bxg4 {[%clk 0:00:07]} 73. Kg5 {[%clk 0:00:05]}  Be6 {[%clk 0:00:07]} 74. Kf6 {[%clk 0:00:05]}  Bc4 {[%clk 0:00:08]} 75. Ke5 {[%clk 0:00:06]}  Ke3 {[%clk 0:00:09]} 0-1


[Site "https://www.chess.com"]

[Event "Titled Tuesday Blitz January 03 Late 2023"]
[White "Shimanov, Aleksandr"]
[Black "Aradhya, Garg"]
[WhiteFideId "4198603"]
[BlackFideId "25006746"]
[WhiteElo "2581"]
[BlackElo "2284"]
[Result "1/2-1/2"]
[Round "11"]
[TimeControl "180+2"]
[Date "2023.01.03"]
[WhiteClock "0:00:25"]
[BlackClock "0:00:18"]

1. e4 {[%clk 0:03:00]}  e5 {[%clk 0:02:59]} 2. Nf3 {[%clk 0:02:59]}  Nc6 {[%clk 0:02:59]} 3. Nc3 {[%clk 0:03:00]}  Nf6 {[%clk 0:02:58]} 4. h3 {[%clk 0:03:01]}  d5 {[%clk 0:02:53]} 5. exd5 {[%clk 0:03:01]}  Nxd5 {[%clk 0:02:53]} 6. Bb5 {[%clk 0:03:02]}  Nxc3 {[%clk 0:02:53]} 7. bxc3 {[%clk 0:03:02]}  Bd6 {[%clk 0:02:52]} 8. O-O {[%clk 0:03:02]}  O-O {[%clk 0:02:52]} 9. Re1 {[%clk 0:03:03]}  Qf6 {[%clk 0:02:49]} 10. d4 {[%clk 0:03:02]}  exd4 {[%clk 0:02:42]} 11. cxd4 {[%clk 0:03:03]}  Bf5 {[%clk 0:02:41]} 12. c3 {[%clk 0:02:53]}  h6 {[%clk 0:02:35]} 13. Be3 {[%clk 0:02:48]}  Ne7 {[%clk 0:02:33]} 14. c4 {[%clk 0:02:46]}  c6 {[%clk 0:02:22]} 15. Ba4 {[%clk 0:02:46]}  Ng6 {[%clk 0:02:17]} 16. Bc2 {[%clk 0:02:46]}  Rae8 {[%clk 0:02:12]} 17. a4 {[%clk 0:02:39]}  Re7 {[%clk 0:02:09]} 18. Qb1 {[%clk 0:02:28]}  Bxh3 {[%clk 0:02:06]} 19. d5 {[%clk 0:02:20]}  Bg4 {[%clk 0:01:48]} 20. Bd4 {[%clk 0:02:00]}  Qf4 {[%clk 0:01:47]} 21. Be3 {[%clk 0:02:00]}  Qxc4 {[%clk 0:01:45]} 22. Bxg6 {[%clk 0:01:13]}  fxg6 {[%clk 0:01:39]} 23. Qxg6 {[%clk 0:01:13]}  Rf6 {[%clk 0:01:19]} 24. Nd2 {[%clk 0:01:02]}  Rxg6 {[%clk 0:00:43]} 25. Nxc4 {[%clk 0:01:01]}  cxd5 {[%clk 0:00:42]} 26. Nxd6 {[%clk 0:01:01]}  Rxd6 {[%clk 0:00:43]} 27. Bd4 {[%clk 0:00:53]}  Rxe1+ {[%clk 0:00:39]} 28. Rxe1 {[%clk 0:00:54]}  b6 {[%clk 0:00:39]} 29. f3 {[%clk 0:00:47]}  Re6 {[%clk 0:00:32]} 30. Rc1 {[%clk 0:00:47]}  Bh5 {[%clk 0:00:31]} 31. Rc7 {[%clk 0:00:46]}  Bf7 {[%clk 0:00:30]} 32. Rxa7 {[%clk 0:00:46]}  g5 {[%clk 0:00:27]} 33. Kf2 {[%clk 0:00:44]}  h5 {[%clk 0:00:25]} 34. Ra6 {[%clk 0:00:40]}  b5 {[%clk 0:00:23]} 35. axb5 {[%clk 0:00:21]}  Rxa6 {[%clk 0:00:21]} 36. bxa6 {[%clk 0:00:22]}  Be8 {[%clk 0:00:21]} 37. a7 {[%clk 0:00:09]}  Bc6 {[%clk 0:00:20]} 38. g4 {[%clk 0:00:10]}  hxg4 {[%clk 0:00:19]} 39. fxg4 {[%clk 0:00:11]}  Kf7 {[%clk 0:00:19]} 40. Ke3 {[%clk 0:00:11]}  Ke6 {[%clk 0:00:19]} 41. Kd3 {[%clk 0:00:10]}  Kd7 {[%clk 0:00:18]} 42. Bf6 {[%clk 0:00:05]}  Kc8 {[%clk 0:00:18]} 43. Bxg5 {[%clk 0:00:05]}  Kb7 {[%clk 0:00:18]} 44. Be3 {[%clk 0:00:06]}  Bd7 {[%clk 0:00:18]} 45. g5 {[%clk 0:00:06]}  Bf5+ {[%clk 0:00:18]} 46. Kc3 {[%clk 0:00:07]}  Be4 {[%clk 0:00:18]} 47. Bd4 {[%clk 0:00:08]}  Ka8 {[%clk 0:00:17]} 48. Kd2 {[%clk 0:00:09]}  Bf5 {[%clk 0:00:15]} 49. Ke3 {[%clk 0:00:10]}  Be4 {[%clk 0:00:15]} 50. Kf4 {[%clk 0:00:11]}  Bb1 {[%clk 0:00:15]} 51. Ke5 {[%clk 0:00:12]}  Be4 {[%clk 0:00:15]} 52. Ke6 {[%clk 0:00:13]}  Kb7 {[%clk 0:00:15]} 53. Kd6 {[%clk 0:00:13]}  Ka8 {[%clk 0:00:15]} 54. Kc7 {[%clk 0:00:14]}  Bd3 {[%clk 0:00:14]} 55. Kb6 {[%clk 0:00:15]}  Be4 {[%clk 0:00:15]} 56. Kc6 {[%clk 0:00:16]}  Bd3 {[%clk 0:00:15]} 57. Bc5 {[%clk 0:00:16]}  Be4 {[%clk 0:00:15]} 58. Bd4 {[%clk 0:00:13]}  Bd3 {[%clk 0:00:15]} 59. Kd6 {[%clk 0:00:13]}  Bc2 {[%clk 0:00:15]} 60. Ke6 {[%clk 0:00:12]}  Be4 {[%clk 0:00:15]} 61. Kf6 {[%clk 0:00:12]}  Bd3 {[%clk 0:00:15]} 62. Be3 {[%clk 0:00:13]}  d4 {[%clk 0:00:14]} 63. Bxd4 {[%clk 0:00:12]}  Bc2 {[%clk 0:00:15]} 64. Ke7 {[%clk 0:00:11]}  Bd3 {[%clk 0:00:14]} 65. Kd8 {[%clk 0:00:12]}  Bc2 {[%clk 0:00:15]} 66. Kc7 {[%clk 0:00:13]}  Bb1 {[%clk 0:00:15]} 67. Kb6 {[%clk 0:00:14]}  Bc2 {[%clk 0:00:15]} 68. Ka5 {[%clk 0:00:15]}  Bb1 {[%clk 0:00:15]} 69. Kb4 {[%clk 0:00:16]}  Bg6 {[%clk 0:00:15]} 70. Kc3 {[%clk 0:00:17]}  Be8 {[%clk 0:00:15]} 71. Kd2 {[%clk 0:00:18]}  Bg6 {[%clk 0:00:15]} 72. Ke1 {[%clk 0:00:18]}  Be8 {[%clk 0:00:15]} 73. Kf2 {[%clk 0:00:19]}  Bg6 {[%clk 0:00:16]} 74. Kg3 {[%clk 0:00:20]}  Be8 {[%clk 0:00:16]} 75. Kh4 {[%clk 0:00:21]}  Bg6 {[%clk 0:00:16]} 76. Kg4 {[%clk 0:00:21]}  Bh7 {[%clk 0:00:16]} 77. Kh5 {[%clk 0:00:21]}  Bb1 {[%clk 0:00:17]} 78. Kh6 {[%clk 0:00:22]}  Bc2 {[%clk 0:00:17]} 79. Kg7 {[%clk 0:00:23]}  Bd3 {[%clk 0:00:17]} 80. Kf6 {[%clk 0:00:24]}  Bc2 {[%clk 0:00:17]} 81. Kf7 {[%clk 0:00:24]}  Bd3 {[%clk 0:00:18]} 82. Kf6 {[%clk 0:00:25]} 1/2-1/2


[Site "https://www.chess.com"]

[Event "Titled Tuesday Blitz January 03 Late 2023"]
[White "Bryakin, Mikhail"]
[Black "Zierk, Steven"]
[WhiteFideId "4165314"]
[BlackFideId "2034255"]
[WhiteElo "2455"]
[BlackElo "2488"]
[Result "0-1"]
[Round "11"]
[TimeControl "180+2"]
[Date "2023.01.03"]
[WhiteClock "0:00:55"]
[BlackClock "0:00:46"]

1. b3 {[%clk 0:03:00]}  d5 {[%clk 0:02:56]} 2. Bb2 {[%clk 0:02:57]}  Bf5 {[%clk 0:02:55]} 3. f3 {[%clk 0:02:51]}  Nf6 {[%clk 0:02:52]} 4. g4 {[%clk 0:02:48]}  Bg6 {[%clk 0:02:50]} 5. Nh3 {[%clk 0:02:45]}  e6 {[%clk 0:02:47]} 6. Nf4 {[%clk 0:02:44]}  Nxg4 {[%clk 0:02:29]} 7. h4 {[%clk 0:02:38]}  Bd6 {[%clk 0:02:28]} 8. e3 {[%clk 0:02:24]}  Bxf4 {[%clk 0:02:22]} 9. exf4 {[%clk 0:02:25]}  Nf6 {[%clk 0:02:20]} 10. Qe2 {[%clk 0:02:23]}  Nbd7 {[%clk 0:02:13]} 11. Nc3 {[%clk 0:02:22]}  Nh5 {[%clk 0:02:13]} 12. Qh2 {[%clk 0:02:16]}  Qf6 {[%clk 0:02:06]} 13. f5 {[%clk 0:02:16]}  Qxf5 {[%clk 0:02:01]} 14. Qxc7 {[%clk 0:02:11]}  Qe5+ {[%clk 0:01:38]} 15. Qxe5 {[%clk 0:02:11]}  Nxe5 {[%clk 0:01:39]} 16. Bb5+ {[%clk 0:02:04]}  Nc6 {[%clk 0:01:37]} 17. Ne2 {[%clk 0:01:58]}  O-O {[%clk 0:01:24]} 18. Bxc6 {[%clk 0:01:43]}  bxc6 {[%clk 0:01:25]} 19. d3 {[%clk 0:01:43]}  c5 {[%clk 0:01:17]} 20. Kf2 {[%clk 0:01:36]}  c4 {[%clk 0:01:12]} 21. dxc4 {[%clk 0:01:31]}  dxc4 {[%clk 0:01:13]} 22. Bd4 {[%clk 0:01:29]}  Bxc2 {[%clk 0:01:12]} 23. bxc4 {[%clk 0:01:28]}  Bd3 {[%clk 0:01:12]} 24. Rhc1 {[%clk 0:01:22]}  Rfd8 {[%clk 0:01:10]} 25. Be3 {[%clk 0:01:21]}  Rac8 {[%clk 0:01:08]} 26. c5 {[%clk 0:01:20]}  Nf6 {[%clk 0:01:08]} 27. Nf4 {[%clk 0:01:17]}  Bb5 {[%clk 0:01:08]} 28. Rd1 {[%clk 0:01:14]}  e5 {[%clk 0:01:05]} 29. Rxd8+ {[%clk 0:01:07]}  Rxd8 {[%clk 0:01:06]} 30. Ne2 {[%clk 0:01:06]}  Nd5 {[%clk 0:01:04]} 31. Rd1 {[%clk 0:01:06]}  Bxe2 {[%clk 0:01:04]} 32. Rxd5 {[%clk 0:00:58]}  Rxd5 {[%clk 0:01:05]} 33. Kxe2 {[%clk 0:00:59]}  Kf8 {[%clk 0:01:02]} 34. c6 {[%clk 0:00:59]}  Ke8 {[%clk 0:01:02]} 35. Bxa7 {[%clk 0:00:58]}  Ra5 {[%clk 0:01:02]} 36. Bb8 {[%clk 0:00:58]}  Rxa2+ {[%clk 0:01:01]} 37. Ke3 {[%clk 0:00:59]}  f6 {[%clk 0:01:02]} 38. Bd6 {[%clk 0:00:59]}  Ra4 {[%clk 0:00:55]} 39. c7 {[%clk 0:00:57]}  Kd7 {[%clk 0:00:53]} 40. Bf8 {[%clk 0:00:57]}  Kxc7 {[%clk 0:00:46]} 41. Bxg7 {[%clk 0:00:56]}  Rf4 {[%clk 0:00:46]} 42. h5 {[%clk 0:00:56]}  Kd7 {[%clk 0:00:46]} 43. h6 {[%clk 0:00:54]}  Ke6 {[%clk 0:00:46]} 44. Bf8 {[%clk 0:00:54]}  Ra4 {[%clk 0:00:46]} 45. Bg7 {[%clk 0:00:55]}  f5 {[%clk 0:00:46]} 0-1


[Site "https://www.chess.com"]

[Event "Titled Tuesday Blitz January 03 Late 2023"]
[White "Jaracz, Pawel"]
[Black "Kravtsiv, Martyn"]
[WhiteFideId "1102222"]
[BlackFideId "14113147"]
[WhiteElo "2467"]
[BlackElo "2598"]
[Result "0-1"]
[Round "11"]
[TimeControl "180+2"]
[Date "2023.01.03"]
[WhiteClock "0:00:01"]
[BlackClock "0:00:03"]

1. d4 {[%clk 0:03:00]}  d5 {[%clk 0:02:59]} 2. c4 {[%clk 0:03:00]}  e6 {[%clk 0:02:59]} 3. Nf3 {[%clk 0:02:58]}  Nf6 {[%clk 0:02:58]} 4. e3 {[%clk 0:02:40]}  Be7 {[%clk 0:02:54]} 5. Nc3 {[%clk 0:02:39]}  O-O {[%clk 0:02:53]} 6. Bd2 {[%clk 0:02:38]}  b6 {[%clk 0:02:53]} 7. cxd5 {[%clk 0:02:36]}  exd5 {[%clk 0:02:53]} 8. Bd3 {[%clk 0:02:36]}  c5 {[%clk 0:02:53]} 9. O-O {[%clk 0:02:35]}  Nc6 {[%clk 0:02:54]} 10. Ne2 {[%clk 0:02:33]}  c4 {[%clk 0:02:53]} 11. Bc2 {[%clk 0:02:33]}  b5 {[%clk 0:02:53]} 12. Ne5 {[%clk 0:02:26]}  Bb7 {[%clk 0:02:52]} 13. Ng3 {[%clk 0:02:22]}  g6 {[%clk 0:02:50]} 14. f4 {[%clk 0:02:22]}  Bd6 {[%clk 0:02:48]} 15. b3 {[%clk 0:02:10]}  a6 {[%clk 0:02:35]} 16. h3 {[%clk 0:02:03]}  Rc8 {[%clk 0:02:31]} 17. Kh2 {[%clk 0:02:01]}  Bb8 {[%clk 0:02:29]} 18. Rb1 {[%clk 0:01:49]}  Ba8 {[%clk 0:02:04]} 19. a4 {[%clk 0:01:26]}  b4 {[%clk 0:02:03]} 20. Nxc6 {[%clk 0:01:19]}  Bxc6 {[%clk 0:01:56]} 21. Bxb4 {[%clk 0:01:19]}  Re8 {[%clk 0:01:56]} 22. Qf3 {[%clk 0:01:14]}  Qd7 {[%clk 0:01:42]} 23. a5 {[%clk 0:01:04]}  Bb5 {[%clk 0:01:40]} 24. Rf2 {[%clk 0:00:59]}  h5 {[%clk 0:01:26]} 25. Bc5 {[%clk 0:00:56]}  h4 {[%clk 0:01:19]} 26. Ne2 {[%clk 0:00:51]}  cxb3 {[%clk 0:01:17]} 27. Rxb3 {[%clk 0:00:45]}  Ne4 {[%clk 0:01:16]} 28. Bxe4 {[%clk 0:00:43]}  dxe4 {[%clk 0:01:09]} 29. Qg4 {[%clk 0:00:42]}  Qxg4 {[%clk 0:01:00]} 30. hxg4 {[%clk 0:00:43]}  g5 {[%clk 0:01:00]} 31. Kh3 {[%clk 0:00:34]}  Bc4 {[%clk 0:00:26]} 32. Rb6 {[%clk 0:00:32]}  Bc7 {[%clk 0:00:25]} 33. Rh6 {[%clk 0:00:24]}  gxf4 {[%clk 0:00:19]} 34. Nxf4 {[%clk 0:00:24]}  Bxa5 {[%clk 0:00:17]} 35. Nh5 {[%clk 0:00:23]}  Bd8 {[%clk 0:00:17]} 36. Nf6+ {[%clk 0:00:21]}  Bxf6 {[%clk 0:00:17]} 37. Rhxf6 {[%clk 0:00:22]}  a5 {[%clk 0:00:16]} 38. R2f5 {[%clk 0:00:22]}  Kg7 {[%clk 0:00:14]} 39. Bd6 {[%clk 0:00:17]}  Re6 {[%clk 0:00:13]} 40. Be5 {[%clk 0:00:14]}  Rxf6 {[%clk 0:00:12]} 41. Rxf6 {[%clk 0:00:15]}  Kg8 {[%clk 0:00:11]} 42. Rh6 {[%clk 0:00:15]}  f6 {[%clk 0:00:11]} 43. Bxf6 {[%clk 0:00:15]}  Kf7 {[%clk 0:00:10]} 44. Be5 {[%clk 0:00:15]}  Ra8 {[%clk 0:00:09]} 45. g5 {[%clk 0:00:12]}  a4 {[%clk 0:00:07]} 46. g6+ {[%clk 0:00:10]}  Ke7 {[%clk 0:00:08]} 47. Rh7+ {[%clk 0:00:09]}  Ke6 {[%clk 0:00:05]} 48. g7 {[%clk 0:00:06]}  Kf5 {[%clk 0:00:05]} 49. Rh8 {[%clk 0:00:06]}  Bg8 {[%clk 0:00:05]} 50. Rh5+ {[%clk 0:00:04]}  Kg6 {[%clk 0:00:04]} 51. Rxh4 {[%clk 0:00:02]}  a3 {[%clk 0:00:05]} 52. d5 {[%clk 0:00:02]}  Bxd5 {[%clk 0:00:04]} 53. Rf4 {[%clk 0:00:01]}  a2 {[%clk 0:00:03]} 0-1


[Site "https://www.chess.com"]

[Event "Titled Tuesday Blitz January 03 Late 2023"]
[White "Timmermans, Mark"]
[Black "Svane, Rasmus"]
[WhiteFideId "1026399"]
[BlackFideId "4657101"]
[WhiteElo "2392"]
[BlackElo "2623"]
[Result "0-1"]
[Round "11"]
[TimeControl "180+2"]
[Date "2023.01.03"]
[WhiteClock "0:00:03"]
[BlackClock "0:00:06"]

1. e4 {[%clk 0:02:59]}  c6 {[%clk 0:02:59]} 2. Nf3 {[%clk 0:02:58]}  d5 {[%clk 0:03:00]} 3. exd5 {[%clk 0:02:59]}  cxd5 {[%clk 0:03:01]} 4. Ne5 {[%clk 0:02:59]}  Nc6 {[%clk 0:03:01]} 5. Bb5 {[%clk 0:02:58]}  Bd7 {[%clk 0:03:01]} 6. Nxd7 {[%clk 0:02:58]}  Qxd7 {[%clk 0:03:02]} 7. d4 {[%clk 0:02:59]}  e6 {[%clk 0:03:03]} 8. Bf4 {[%clk 0:02:54]}  Bd6 {[%clk 0:03:00]} 9. Bxd6 {[%clk 0:02:54]}  Qxd6 {[%clk 0:03:01]} 10. O-O {[%clk 0:02:54]}  Nf6 {[%clk 0:03:01]} 11. c3 {[%clk 0:02:49]}  O-O {[%clk 0:03:01]} 12. a4 {[%clk 0:02:47]}  a6 {[%clk 0:02:58]} 13. Bd3 {[%clk 0:02:48]}  Rab8 {[%clk 0:02:58]} 14. Na3 {[%clk 0:02:43]}  Rfe8 {[%clk 0:02:48]} 15. Nc2 {[%clk 0:02:29]}  e5 {[%clk 0:02:44]} 16. dxe5 {[%clk 0:02:29]}  Nxe5 {[%clk 0:02:45]} 17. Be2 {[%clk 0:02:28]}  Qb6 {[%clk 0:02:38]} 18. Nb4 {[%clk 0:02:16]}  Nc6 {[%clk 0:02:27]} 19. a5 {[%clk 0:02:04]}  Nxa5 {[%clk 0:02:21]} 20. Bf3 {[%clk 0:02:04]}  Nc6 {[%clk 0:02:00]} 21. Nxd5 {[%clk 0:01:56]}  Nxd5 {[%clk 0:02:00]} 22. Bxd5 {[%clk 0:01:57]}  Qxb2 {[%clk 0:01:48]} 23. c4 {[%clk 0:01:57]}  Qf6 {[%clk 0:01:40]} 24. Qa4 {[%clk 0:01:37]}  Rec8 {[%clk 0:01:02]} 25. Rab1 {[%clk 0:01:33]}  g6 {[%clk 0:00:57]} 26. Rb6 {[%clk 0:01:31]}  Qd4 {[%clk 0:00:49]} 27. Rfb1 {[%clk 0:01:30]}  Re8 {[%clk 0:00:49]} 28. h3 {[%clk 0:00:51]}  Re1+ {[%clk 0:00:31]} 29. Rxe1 {[%clk 0:00:48]}  Qxb6 {[%clk 0:00:31]} 30. Qa1 {[%clk 0:00:41]}  Nb4 {[%clk 0:00:27]} 31. Qe5 {[%clk 0:00:37]}  Rd8 {[%clk 0:00:22]} 32. c5 {[%clk 0:00:22]}  Qa5 {[%clk 0:00:11]} 33. Ra1 {[%clk 0:00:15]}  Qb5 {[%clk 0:00:06]} 34. Rd1 {[%clk 0:00:13]}  Rxd5 {[%clk 0:00:05]} 35. Rxd5 {[%clk 0:00:13]}  Nxd5 {[%clk 0:00:06]} 36. Qxd5 {[%clk 0:00:14]}  Qc6 {[%clk 0:00:07]} 37. Qd8+ {[%clk 0:00:13]}  Kg7 {[%clk 0:00:07]} 38. Qd4+ {[%clk 0:00:14]}  f6 {[%clk 0:00:08]} 39. Qb4 {[%clk 0:00:13]}  Kf7 {[%clk 0:00:07]} 40. Qc4+ {[%clk 0:00:13]}  Ke7 {[%clk 0:00:07]} 41. Qb4 {[%clk 0:00:11]}  h5 {[%clk 0:00:07]} 42. h4 {[%clk 0:00:10]}  Kd7 {[%clk 0:00:07]} 43. Qd4+ {[%clk 0:00:10]}  Ke7 {[%clk 0:00:07]} 44. Qb4 {[%clk 0:00:11]}  Ke6 {[%clk 0:00:07]} 45. g3 {[%clk 0:00:11]}  Kd5 {[%clk 0:00:07]} 46. Qb3+ {[%clk 0:00:08]}  Kxc5 {[%clk 0:00:07]} 47. Qc3+ {[%clk 0:00:08]}  Kb6 {[%clk 0:00:06]} 48. Qd4+ {[%clk 0:00:09]}  Kb5 {[%clk 0:00:06]} 49. Qb2+ {[%clk 0:00:09]}  Kc4 {[%clk 0:00:06]} 50. Qc2+ {[%clk 0:00:08]}  Kd5 {[%clk 0:00:06]} 51. Qxg6 {[%clk 0:00:08]}  b5 {[%clk 0:00:03]} 52. Qxh5+ {[%clk 0:00:08]}  Kc4 {[%clk 0:00:04]} 53. Qe2+ {[%clk 0:00:08]}  Kb3 {[%clk 0:00:04]} 54. h5 {[%clk 0:00:09]}  b4 {[%clk 0:00:03]} 55. h6 {[%clk 0:00:09]}  Qc1+ {[%clk 0:00:03]} 56. Kg2 {[%clk 0:00:09]}  Qxh6 {[%clk 0:00:04]} 57. Qxa6 {[%clk 0:00:08]}  Qg5 {[%clk 0:00:04]} 58. Qd3+ {[%clk 0:00:08]}  Kb2 {[%clk 0:00:04]} 59. Qd4+ {[%clk 0:00:08]}  Ka3 {[%clk 0:00:04]} 60. Qa7+ {[%clk 0:00:07]}  Kb3 {[%clk 0:00:04]} 61. Qf7+ {[%clk 0:00:06]}  Kb2 {[%clk 0:00:04]} 62. f4 {[%clk 0:00:06]}  Qf5 {[%clk 0:00:04]} 63. Qc4 {[%clk 0:00:05]}  b3 {[%clk 0:00:04]} 64. Qd4+ {[%clk 0:00:05]}  Ka2 {[%clk 0:00:04]} 65. Qa4+ {[%clk 0:00:05]}  Kb2 {[%clk 0:00:05]} 66. Qd4+ {[%clk 0:00:05]}  Kb1 {[%clk 0:00:05]} 67. Qd1+ {[%clk 0:00:05]}  Ka2 {[%clk 0:00:06]} 68. Qd7 {[%clk 0:00:03]}  Qxd7 {[%clk 0:00:06]} 0-1


[Site "https://www.chess.com"]

[Event "Titled Tuesday Blitz January 03 Late 2023"]
[White "Morefield, Jason"]
[Black "Kamsky, Gata"]
[WhiteFideId "30920825"]
[BlackFideId "2000024"]
[WhiteElo "2167"]
[BlackElo "2665"]
[Result "0-1"]
[Round "11"]
[TimeControl "180+2"]
[Date "2023.01.03"]
[WhiteClock "0:00:42"]
[BlackClock "0:01:00"]

1. Nf3 {[%clk 0:03:00]}  Nf6 {[%clk 0:02:54]} 2. d4 {[%clk 0:02:59]}  g6 {[%clk 0:02:53]} 3. c4 {[%clk 0:02:58]}  Bg7 {[%clk 0:02:50]} 4. Nc3 {[%clk 0:02:58]}  d6 {[%clk 0:02:49]} 5. e4 {[%clk 0:02:57]}  O-O {[%clk 0:02:48]} 6. Be2 {[%clk 0:02:58]}  e5 {[%clk 0:02:47]} 7. Be3 {[%clk 0:02:59]}  c6 {[%clk 0:02:45]} 8. d5 {[%clk 0:02:58]}  c5 {[%clk 0:02:43]} 9. O-O {[%clk 0:02:55]}  Ng4 {[%clk 0:02:43]} 10. Bg5 {[%clk 0:02:54]}  f6 {[%clk 0:02:43]} 11. Bd2 {[%clk 0:02:52]}  Na6 {[%clk 0:02:39]} 12. Ne1 {[%clk 0:02:48]}  h5 {[%clk 0:02:37]} 13. Nd3 {[%clk 0:02:42]}  f5 {[%clk 0:02:31]} 14. a3 {[%clk 0:02:32]}  f4 {[%clk 0:02:28]} 15. b4 {[%clk 0:02:27]}  b6 {[%clk 0:02:28]} 16. bxc5 {[%clk 0:02:15]}  Nxc5 {[%clk 0:02:19]} 17. Nxc5 {[%clk 0:02:15]}  bxc5 {[%clk 0:02:20]} 18. Rb1 {[%clk 0:01:57]}  Qh4 {[%clk 0:01:51]} 19. h3 {[%clk 0:01:57]}  Nf6 {[%clk 0:01:51]} 20. Be1 {[%clk 0:01:45]}  Qg5 {[%clk 0:01:43]} 21. Kh1 {[%clk 0:01:43]}  Bd7 {[%clk 0:01:39]} 22. Rb7 {[%clk 0:01:36]}  Bc8 {[%clk 0:01:26]} 23. Rb2 {[%clk 0:01:24]}  Ne8 {[%clk 0:01:09]} 24. Rg1 {[%clk 0:01:07]}  Rf7 {[%clk 0:01:05]} 25. Bf1 {[%clk 0:01:05]}  Qd8 {[%clk 0:01:02]} 26. Qb1 {[%clk 0:00:55]}  g5 {[%clk 0:01:00]} 27. Rb8 {[%clk 0:00:47]}  Rxb8 {[%clk 0:00:59]} 28. Qxb8 {[%clk 0:00:46]}  Rb7 {[%clk 0:01:00]} 29. Qa8 {[%clk 0:00:42]}  Nc7 {[%clk 0:01:00]} 0-1


[Site "https://www.chess.com"]